fUSD/lending_fUSD_20250825
["ID","MTS","AMOUNT","RATE_DAILY","PERIOD"]
[381374718,1756163441375,-2313.60459707,0.00018744,2]
[381374720,1756163441385,-871.51365445,0.00018746,2]
[381374722,1756163441394,-785.0,0.0001875,2]
[381374724,1756163441403,-1029.4317058,0.00018752,5]
[381374726,1756163441413,-1029.4317058,0.00018752,5]
[381374727,1756163441424,-500.0,0.00018752,2]
[381374729,1756163441433,-413.46138483,0.00018752,2]
[381374731,1756163441443,-500.0,0.00018752,2]
[381374733,1756163441452,-785.0,0.00018763,2]
[381374735,1756163441461,-259.49953375,0.00018781,2]
[381374737,1756163441471,-5750.76513971,0.00018792,2]
[381374739,1756163441481,-566.47308076,0.00018792,2]
[381374741,1756163441490,-1600.0,0.000188,6]
[381374742,1756163441500,-6650.56142215,0.00018816,2]
[381374743,1756163441509,-2424.91203473,0.00018823,2]
[381374744,1756163441518,-5750.76513966,0.00018824,2]
[381374745,1756163441527,-500.0,0.0001884,2]
[381374746,1756163441536,-150.0,0.0001884,2]
[381374747,1756163441546,-150.0,0.0001884,2]
[381374748,1756163441555,-500.0,0.0001884,2]
[381374749,1756163441564,-200.0,0.00018842,2]
[381374750,1756163441573,-559.0,0.00018851,2]
[381374751,1756163441583,-150.0,0.00018851,2]
[381374752,1756163441592,-1083.0,0.00018851,2]
[381374753,1756163441601,-150.0,0.00018851,2]
[381374754,1756163441611,-150.0,0.00018851,2]
[381374755,1756163441620,-500.0,0.00018851,2]
[381374756,1756163441629,-5750.76513966,0.00018856,2]
[381374757,1756163441639,-211.01537875,0.00018857,2]
[381374758,1756163441648,-8623.71522497,0.00018861,2]
[381374759,1756163441659,-39143.47811725,0.00018862,2]
[381374760,1756163441668,-8623.71522497,0.00018871,2]
[381374761,1756163441677,-222.57837522,0.00018876,2]
[381374762,1756163441686,-150.0,0.00018876,2]
[381374763,1756163441696,-8623.71522497,0.00018877,2]
[381374764,1756163441707,-10054.16,0.0001888,2]
[381374765,1756163441716,-5750.76513966,0.00018887,2]
[381374766,1756163441729,-785.0,0.0001889,2]
[381374767,1756163441738,-150.0,0.00018892,2]
[381374768,1756163441748,-500.0,0.00018892,2]
[381374769,1756163441757,-500.0,0.00018892,2]
[381374770,1756163441767,-262.57883991,0.00018892,2]
[381374771,1756163441776,-183.7665289,0.00018892,2]
[381374772,1756163441786,-500.0,0.00018892,2]
[381374774,1756163441795,-500.0,0.00018892,2]
[381374775,1756163441806,-160.3343392,0.00018892,2]
[381374776,1756163441816,-54278.9051,0.00018892,2]
[381374778,1756163441825,-1000.0,0.00018892,2]
[381374779,1756163441834,-24981.7842,0.00018892,2]
[381374781,1756163441843,-211.01537875,0.00018894,2]
[381374783,1756163441853,-160.33433918,0.00018894,2]
[381374785,1756163441862,-5000.0,0.00018894,2]
[381374787,1756163441872,-612.7,0.00018894,2]
[381374789,1756163441881,-5099.0479958,0.00018894,2]
[381374791,1756163441891,-11312.55108977,0.00018894,2]
[381374794,1756163441900,-161.45946143,0.00018895,2]
[381374796,1756163441910,-763.25063476,0.00018895,2]
[381374798,1756163441919,-271.944,0.00018895,2]
[381374800,1756163441928,-1001.66227919,0.00018895,2]
[381374802,1756163441937,-306.64548102,0.00018895,2]
[381374804,1756163441946,-160.33433918,0.00018895,2]
[381374805,1756163441955,-8623.71522497,0.00018895,2]
[381374808,1756163441965,-1000.0,0.00018899,2]
[381374809,1756163441975,-211.01537875,0.00018899,2]
[381374812,1756163441984,-11312.55108977,0.000189,2]
[381374814,1756163441994,-190.5817951,0.000189,2]
[381374816,1756163442003,-300.0,0.000189,6]
[381374818,1756163442012,-501.84629966,0.000189,3]
[381374820,1756163442021,-2996.75515312,0.000189,2]
[381374821,1756163442030,-5027.08,0.000189,2]
[381374824,1756163442039,-1040.53924663,0.000189,2]
[381374826,1756163442049,-3671.9689275,0.00018901,2]
[381374827,1756163442058,-13454.5149368,0.00018901,2]
[381374829,1756163442067,-2536.21947239,0.00018903,2]
[381374831,1756163442077,-151.0,0.00018903,2]
[381374833,1756163442086,-151.0,0.00018903,2]
[381374835,1756163442095,-6650.56142215,0.00018903,2]
[381374837,1756163442104,-11312.55108977,0.00018909,2]
[381374839,1756163442114,-11312.55108977,0.00018912,2]
[381374841,1756163442122,-646.7313722,0.00018912,2]
[381374843,1756163442132,-39143.47811725,0.00018917,2]
[381374845,1756163442142,-6376.304,0.00018919,2]
[381374847,1756163442151,-5750.76513966,0.00018919,2]
[381374849,1756163442161,-7000.0,0.00018927,2]
[381374851,1756163442170,-33978.63017704,0.00018927,2]
[381374853,1756163442179,-1397.2191391,0.00018929,2]
[381374855,1756163442189,-39143.47811725,0.0001893,2]
[381374857,1756163442198,-20000.0,0.0001893,2]
[381374859,1756163442207,-151.0,0.0001893,2]
[381374861,1756163442217,-151.0,0.0001893,2]
[381374863,1756163442226,-151.0,0.0001893,2]
[381374865,1756163442236,-151.0,0.0001893,2]
[381374867,1756163442245,-151.0,0.0001893,2]
[381374869,1756163442255,-151.0,0.0001893,2]
[381374871,1756163442264,-175.576174,0.0001893,2]
[381374873,1756163442273,-151.0,0.0001893,2]
[381374875,1756163442282,-175.576174,0.0001893,2]
[381374878,1756163442291,-151.0,0.0001893,2]
[381374880,1756163442301,-151.0,0.0001893,2]
[381374882,1756163442311,-151.0,0.0001893,2]
[381374884,1756163442321,-151.0,0.0001893,2]
[381374885,1756163442333,-175.576174,0.0001893,2]
[381374887,1756163442342,-151.0,0.0001893,2]
[381374889,1756163442352,-151.0,0.0001893,2]
[381374891,1756163442360,-151.0,0.0001893,2]
[381374893,1756163442370,-151.0,0.0001893,2]
[381374895,1756163442379,-151.0,0.0001893,2]
[381374897,1756163442388,-199.475886,0.0001893,2]
[381374899,1756163442397,-151.0,0.0001893,2]
[381374901,1756163442407,-151.0,0.0001893,2]
[381374903,1756163442416,-151.0,0.0001893,2]
[381374905,1756163442426,-151.0,0.0001893,2]
[381374907,1756163442435,-175.576174,0.0001893,2]
[381374910,1756163442445,-151.0,0.0001893,2]
[381374912,1756163442455,-151.0,0.0001893,2]
[381374913,1756163442465,-151.0,0.0001893,2]
[381374915,1756163442475,-267.311767,0.0001893,2]
[381374917,1756163442484,-151.0,0.0001893,2]
[381374919,1756163442493,-151.0,0.0001893,2]
[381374921,1756163442503,-151.0,0.0001893,2]
[381374924,1756163442512,-151.0,0.0001893,2]
[381374926,1756163442522,-151.0,0.0001893,2]
[381374927,1756163442531,-193.97925,0.0001893,2]
[381374929,1756163442540,-151.0,0.0001893,2]
[381374931,1756163442550,-193.97925,0.0001893,2]
[381374933,1756163442559,-151.0,0.0001893,2]
[381374935,1756163442568,-1984.375771,0.0001893,2]
[381374937,1756163442578,-193.97925,0.0001893,2]
[381374939,1756163442587,-151.0,0.0001893,2]
[381374941,1756163442596,-1984.375771,0.0001893,2]
[381374943,1756163442605,-193.97925,0.0001893,2]
[381374945,1756163442614,-151.0,0.0001893,2]
[381374947,1756163442623,-151.0,0.0001893,2]
[381374949,1756163442633,-151.0,0.0001893,2]
[381374951,1756163442642,-151.0,0.0001893,2]
[381374953,1756163442651,-1984.375771,0.0001893,2]
[381374955,1756163442660,-151.0,0.0001893,2]
[381374957,1756163442669,-1984.375771,0.0001893,2]
[381374959,1756163442679,-151.0,0.0001893,2]
[381374961,1756163442688,-39143.47811725,0.0001893,2]
[381374963,1756163442697,-1397.2191391,0.00018932,2]
[381374965,1756163442707,-190.88539615,0.00018941,2]
[381374968,1756163442715,-211.01537875,0.00018942,2]
[381374971,1756163442728,-396.72728959,0.00018943,2]
[381374974,1756163442738,-11312.55108977,0.00018943,2]
[381374976,1756163442747,-39143.47811725,0.00018944,2]
[381374978,1756163442756,-211.01537875,0.00018949,2]
[381374980,1756163442765,-936.0,0.00018949,2]
[381374982,1756163442776,-11312.55108977,0.00018949,2]
[381374984,1756163442786,-5750.76513966,0.00018951,2]
[381374986,1756163442795,-1397.2191391,0.00018952,2]
[381374988,1756163442805,-396.72728959,0.00018952,2]
[381374990,1756163442815,-39143.47811725,0.00018953,2]
[381374992,1756163442824,-500.0,0.00018963,2]
[381374995,1756163442833,-500.0,0.00018963,2]
[381374998,1756163442842,-500.0,0.00018963,2]
[381375000,1756163442852,-500.0,0.00018963,2]
[381375002,1756163442861,-500.0,0.00018963,2]
[381375004,1756163442870,-500.0,0.00018963,2]
[381375006,1756163442879,-500.0,0.00018963,2]
[381375008,1756163442889,-500.0,0.00018963,2]
[381375011,1756163442898,-500.0,0.00018963,2]
[381375013,1756163442907,-500.0,0.00018963,2]
[381375015,1756163442916,-500.0,0.00018963,2]
[381375017,1756163442926,-500.0,0.00018963,2]
[381375019,1756163442935,-500.0,0.00018963,2]
[381375021,1756163442944,-500.0,0.00018963,2]
[381375023,1756163442953,-500.0,0.00018963,2]
[381375025,1756163442962,-500.0,0.00018963,2]
[381375027,1756163442972,-500.0,0.00018963,2]
[381375029,1756163442981,-500.0,0.00018963,2]
[381375031,1756163442991,-500.0,0.00018963,2]
[381375033,1756163443000,-500.0,0.00018963,2]
[381375035,1756163443010,-500.0,0.00018963,2]
[381375037,1756163443019,-8623.71522497,0.00018963,2]
[381375039,1756163443029,-396.72728959,0.00018964,2]
[381375041,1756163443038,-11312.55108977,0.00018965,2]
[381375043,1756163443047,-158375.715257,0.00018965,2]
[381375045,1756163443056,-211.01537875,0.0001897,2]
[381375047,1756163443067,-321.0,0.0001897,2]
[381375049,1756163443077,-8623.71522497,0.00018971,2]
[381375051,1756163443086,-500.0,0.00018973,2]
[381375053,1756163443095,-150.92143273,0.00018973,2]
[381375055,1756163443105,-170.78782751,0.00018973,2]
[381375057,1756163443114,-500.0,0.00018973,2]
[381375059,1756163443124,-500.36167666,0.00018973,2]
[381375061,1756163443133,-500.24477188,0.00018973,2]
[381375063,1756163443142,-500.0,0.00018973,2]
[381375065,1756163443151,-500.0,0.00018973,2]
[381375067,1756163443160,-500.0,0.00018973,2]
[381375069,1756163443170,-500.0,0.00018973,2]
[381375071,1756163443179,-196.73184288,0.00018973,2]
[381375073,1756163443188,-500.0,0.00018973,2]
[381375075,1756163443197,-500.0,0.00018973,2]
[381375077,1756163443207,-500.0,0.00018973,2]
[381375079,1756163443217,-500.0,0.00018973,2]
[381375081,1756163443227,-500.0,0.00018973,2]
[381375083,1756163443236,-500.0,0.00018973,2]
[381375085,1756163443245,-500.0,0.00018973,2]
[381375087,1756163443254,-500.0,0.00018973,2]
[381375089,1756163443263,-500.0,0.00018973,2]
[381375091,1756163443273,-500.0,0.00018973,2]
[381375093,1756163443282,-500.0,0.00018973,2]
[381375095,1756163443291,-500.0,0.00018973,2]
[381375097,1756163443300,-500.0,0.00018973,2]
[381375099,1756163443310,-500.0,0.00018973,2]
[381375101,1756163443319,-500.0,0.00018973,2]
[381375103,1756163443328,-162.18857713,0.00018973,2]
[381375105,1756163443339,-500.0,0.00018973,2]
[381375107,1756163443348,-500.0,0.00018973,2]
[381375109,1756163443357,-239.90643624,0.00018973,2]
[381375111,1756163443367,-500.0,0.00018973,2]
[381375113,1756163443376,-500.0,0.00018973,2]
[381375115,1756163443386,-500.0,0.00018973,2]
[381375117,1756163443395,-281.33759655,0.00018973,2]
[381375120,1756163443405,-500.0,0.00018973,2]
[381375123,1756163443415,-500.0,0.00018973,2]
[381375125,1756163443424,-396.72728959,0.00018977,2]
[381375127,1756163443434,-575.6994798,0.00018978,2]
[381375129,1756163443443,-1471.8111184,0.00018978,2]
[381375131,1756163443453,-803.9876797,0.00018978,2]
[381375133,1756163443462,-2201.69142832,0.00018978,2]
[381375135,1756163443473,-208.0,0.0001898,2]
[381375137,1756163443483,-211.01537875,0.0001898,2]
[381375139,1756163443492,-18220.38696771,0.00018981,2]
[381375141,1756163443502,-9948.866926,0.00018981,2]
[381375145,1756163443532,-513.14376,0.00018981,2]
[381375227,1756163444322,-151.0,0.0001893,2]
[381375229,1756163444332,-1149.0,0.00018981,2]
[381375231,1756163444343,-541.90514706,0.00018981,2]
[381375238,1756163444409,-2445.09886678,0.00018981,2]
[381375241,1756163444421,-532.03,0.00018981,2]
[381375243,1756163444432,-3090.34226787,0.00018981,2]
[381375245,1756163444442,-2643.6003235,0.00018982,2]
[381375275,1756163444723,-3.92658662,0.00018982,2]
[381375279,1756163444754,-802.57144724,0.00018982,2]
[381375281,1756163444766,-2609.3688072,0.00018982,2]
[381375290,1756163444840,-5211.77497053,0.00018982,2]
[381375292,1756163444850,-5750.76513966,0.00018983,2]
[381375294,1756163444860,-152.59,0.00018985,2]
[381375296,1756163444869,-152.59,0.00018985,2]
[381375298,1756163444879,-152.59,0.00018985,2]
[381375300,1756163444888,-152.59,0.00018985,2]
[381375302,1756163444897,-152.59,0.00018985,2]
[381375304,1756163444907,-152.59,0.00018985,2]
[381375306,1756163444916,-152.59,0.00018985,2]
[381375307,1756163444925,-152.59,0.00018985,2]
[381375308,1756163444934,-152.59,0.00018985,2]
[381375309,1756163444943,-152.59,0.00018985,2]
[381375310,1756163444952,-33.08210105,0.00018985,2]
[381375411,1756163446052,-151.0,0.00018903,2]
[381375413,1756163446062,-151.0,0.00018903,2]
[381375415,1756163446072,-176.52768398,0.00018985,2]
[381375417,1756163446082,-152.59,0.00018985,2]
[381375419,1756163446092,-152.59,0.00018985,2]
[381375421,1756163446101,-152.59,0.00018985,2]
[381375423,1756163446111,-152.59,0.00018985,2]
[381375425,1756163446120,-152.59,0.00018985,2]
[381375427,1756163446130,-152.59,0.00018985,2]
[381375429,1756163446139,-152.59,0.00018985,2]
[381375431,1756163446148,-152.59,0.00018985,2]
[381375433,1756163446158,-152.59,0.00018985,2]
[381375435,1756163446167,-152.59,0.00018985,2]
[381375437,1756163446177,-152.59,0.00018985,2]
[381375439,1756163446186,-152.59,0.00018985,2]
[381375441,1756163446197,-152.59,0.00018985,2]
[381375443,1756163446207,-151.14,0.00018985,2]
[381375445,1756163446216,-151.63,0.00018985,2]
[381375447,1756163446228,-158375.715257,0.00018989,2]
[381375449,1756163446237,-39143.47811725,0.0001899,2]
[381375451,1756163446246,-190.88539615,0.00018991,2]
[381375453,1756163446255,-6650.56142215,0.00018991,2]
[381375455,1756163446265,-150.0,0.00018991,2]
[381375457,1756163446274,-16875.66298558,0.00018992,2]
[381375460,1756163446295,-1316.65614488,0.00018992,2]
[381375477,1756163446451,-1837.40604049,0.00018992,2]
[381375479,1756163446463,-3288.0,0.00018992,2]
[381375481,1756163446475,-2094.9842909,0.00018992,2]
[381375787,1756163730022,173.05,0.00021945,30]
[381375788,1756163733381,446.87,0.00013699,2]
[381375792,1756163908344,-152.65,0.00015606,2]
[381375793,1756163911950,-297.00207049,0.00015606,2]
[381375804,1756164474174,240.0,0.00013,15]
[381375805,1756164474195,3700.0,0.00013,15]
[381375806,1756164474216,1009.80040918,0.00013,15]
[381375807,1756164479144,492.49359082,0.00012,2]
[381375813,1756164506696,5980.30092135,0.0001098,2]
[381375830,1756164533006,-252.14,0.00012,2]
[381375834,1756164536462,-569.88,0.00012,2]
[381375840,1756164543174,-500.0,0.00012,2]
[381375843,1756164544936,-500.0,0.00012,2]
[381375857,1756164606521,-1200.0,0.00011999,2]
[381375858,1756164606546,-300.0,0.00011999,2]
[381375859,1756164606569,-150.0,0.00011999,2]
[381375860,1756164606592,-299.164,0.00012,2]
[381375861,1756164614931,-150.0,0.00012,2]
[381375867,1756164632233,-2530.23999999,0.00012,2]
[381375868,1756164632303,-2435.08410106,0.00012,2]
[381375869,1756164632315,-437.8624319,0.00012,2]
[381375870,1756164632338,-591.348914,0.00012,2]
[381375877,1756164632550,-1995.41654942,0.00012,2]
[381375883,1756164639104,-1178.64466931,0.00012,2]
[381375884,1756164639131,-1143.92509983,0.00012,2]
[381375885,1756164639152,-401.15198877,0.00012,2]
[381375886,1756164639318,-1852.16402651,0.00012,2]
[381375887,1756164640061,-12575.9836152,0.00012,2]
[381375888,1756164640074,-5021.165949,0.00012,2]
[381375890,1756164640087,-468.19364221,0.00012,2]
[381375891,1756164640129,-25774.08882319,0.00012,2]
[381375892,1756164640196,-5640.0,0.00012,2]
[381375896,1756164643170,-716.48245561,0.00012,2]
[381375897,1756164643311,-385.3849999,0.00012,2]
[381375898,1756164643324,-890.97860955,0.00012,2]
[381375899,1756164643335,-38437.04145159,0.00012,2]
[381375900,1756164643346,-470.87859331,0.00012,2]
[381375901,1756164643358,-3480.49725428,0.00012,2]
[381375902,1756164643457,-6447.22479798,0.00012,2]
[381375903,1756164643483,-2470.85794674,0.00012,2]
[381375904,1756164643495,-484.90977668,0.00012,2]
[381375907,1756164646121,-1337.28433344,0.00012,2]
[381375909,1756164646134,-4091.51988742,0.00012,2]
[381375910,1756164646170,-188.481627,0.00012,2]
[381375911,1756164646179,-150.0,0.00013079,2]
[381375912,1756164646189,-420.0,0.00013172,2]
[381375913,1756164646198,-1680.0,0.00013199,2]
[381375914,1756164646207,-152.0,0.000132,2]
[381375915,1756164646219,-108.61579931,0.000132,2]
[381375916,1756164646232,-141.38420069,0.000132,2]
[381375917,1756164646242,-152.0,0.0001405,2]
[381375918,1756164646254,-1523.0,0.0001405,2]
[381375919,1756164646264,-587.0,0.0001446,2]
[381375920,1756164646274,-720.0,0.00014519,2]
[381375921,1756164646284,-823.0,0.00015874,2]
[381375922,1756164646293,-250.0,0.00016504,2]
[381375923,1756164646303,-4629.81579931,0.00017,3]
[381375924,1756164646360,-881.18420069,0.00017,3]
[381375925,1756164646370,-185.16,0.00017008,2]
[381375926,1756164646379,-136.36126004,0.000172,2]
[381375927,1756164646472,-260.63873996,0.000172,2]
[381375928,1756164646482,-494.0,0.00017426,2]
[381375929,1756164646491,-245.36126004,0.000175,5]
[381375932,1756164921941,-152.0,0.00012355,2]
[381375933,1756165002584,173.05,0.00021945,30]
[381375934,1756165039196,-162.53,0.00012355,2]
[381375935,1756165076052,-951.3667436,0.00012355,2]
[381375936,1756165076075,-248.6332564,0.00012355,2]
[381375938,1756165141236,168.0,7.9e-07,2]
[381375939,1756165199736,150.0,0.00028767,120]
[381375971,1756165832524,-363.4540862,0.00012355,2]
[381375972,1756165832535,-728.2596117,0.00012355,2]
[381375973,1756165832545,-215.0606281,0.00012359,2]
[381375974,1756165832555,-152.0,0.00013591,2]
[381375975,1756165832564,-500.0,0.00013699,2]
[381375976,1756165832573,-500.45,0.00013699,2]
[381375977,1756165832583,-181.31,0.00013927,2]
[381375978,1756165832593,-1265.8967436,0.00013981,2]
[381375979,1756165832602,-1200.0,0.00013988,2]
[381375980,1756165832612,-215.0606281,0.00013989,2]
[381375981,1756165832621,-1340.3469543,0.0001399,2]
[381375982,1756165832630,-500.0,0.0001446,2]
[381375983,1756165832641,-500.0,0.0001446,2]
[381375984,1756165832650,-500.0,0.0001446,2]
[381375985,1756165832659,-522.6803858,0.0001446,2]
[381375986,1756165832668,-151.0,0.0001446,2]
[381375987,1756165832677,-200.0,0.0001446,2]
[381375988,1756165832686,-250.0,0.00015,2]
[381375989,1756165832696,-480.0,0.00015387,2]
[381375990,1756165832706,-205.73504836,0.00015608,2]
[381375991,1756165832718,-1060.16169524,0.00015608,2]
[381375993,1756165832726,-215.0606281,0.00015619,2]
[381375995,1756165832736,-1340.3469543,0.00015625,2]
[381375997,1756165832745,-222.54173199,0.00016438,2]
[381375998,1756165832754,-600.19,0.00016749,2]
[381375999,1756165832764,-408.59,0.00016756,2]
[381376000,1756165832775,-1000.0,0.00016807,2]
[381376001,1756165832785,-815.9,0.00016856,2]
[381376002,1756165832797,-408.59,0.00016856,2]
[381376003,1756165832809,-817.18,0.00016856,2]
[381376004,1756165832824,-999.66,0.00016889,2]
[381376006,1756165832834,-160.0,0.00017044,7]
[381376007,1756165832844,-1265.8967436,0.00017234,2]
[381376009,1756165832853,-215.0606281,0.00017249,2]
[381376010,1756165832864,-150.0,0.00017249,2]
[381376011,1756165832874,-871.51365445,0.0001725,2]
[381376012,1756165832884,-1340.3469543,0.0001726,2]
[381376013,1756165832894,-166.90629899,0.00017297,7]
[381376014,1756165832903,-166.90629899,0.00017297,7]
[381376015,1756165832914,-167.52,0.00017311,2]
[381376016,1756165832925,-539.68,0.00017356,2]
[381376017,1756165832935,-173.76,0.00017356,2]
[381376018,1756165832945,-449.6521,0.000174,2]
[381376019,1756165832955,-7000.0,0.00017426,2]
[381376020,1756165832964,-173.76,0.00017456,2]
[381376021,1756165832974,-2000.0,0.000175,2]
[381376022,1756165832983,-539.68,0.00017556,2]
[381376023,1756165832993,-173.76,0.00017556,2]
[381376024,1756165833002,-151.0,0.00017602,2]
[381376025,1756165833011,-321.0,0.00017608,2]
[381376026,1756165833021,-321.0,0.00017779,2]
[381376027,1756165833030,-321.0,0.00017868,2]
[381376028,1756165833040,-1000.0,0.00017908,2]
[381376029,1756165833049,-5314.91561287,0.00017909,2]
[381376030,1756165833059,-167.35,0.00017981,2]
[381376031,1756165833069,-2235.93092082,0.00018,2]
[381376032,1756165833079,-1166.69453783,0.00018,2]
[381376033,1756165833090,-1461.75,0.00018,2]
[381376034,1756165833099,-389.0,0.00018,2]
[381376035,1756165833108,-322.6107,0.00018032,2]
[381376036,1756165833118,-267.46074303,0.00018032,2]
[381376037,1756165833127,-160.0,0.00018032,2]
[381376038,1756165833137,-695.39793187,0.00018032,2]
[381376039,1756165833146,-321.0,0.00018098,2]
[381376040,1756165833156,-312.0,0.00018098,2]
[381376041,1756165833166,-1744.87284498,0.000181,2]
[381376042,1756165833176,-694.0,0.00018115,2]
[381376043,1756165833185,-312.0,0.00018193,2]
[381376044,1756165833195,-2133.20391064,0.000182,2]
[381376045,1756165833204,-312.0,0.00018215,2]
[381376046,1756165833214,-321.0,0.00018243,2]
[381376047,1756165833223,-844.49479001,0.00018369,2]
[381376048,1756165833232,-694.0,0.00018397,2]
[381376049,1756165833242,-312.0,0.00018401,2]
[381376050,1756165833251,-1256.0,0.00018414,2]
[381376051,1756165833261,-3374.0,0.00018414,2]
[381376052,1756165833270,-925.0,0.00018414,2]
[381376053,1756165833280,-2031.0,0.00018414,2]
[381376054,1756165833289,-566.0,0.00018414,2]
[381376055,1756165833299,-1298.0,0.00018414,2]
[381376056,1756165833308,-1657.0,0.00018414,2]
[381376057,1756165833319,-599.0,0.00018414,2]
[381376058,1756165833329,-1275.7,0.00018414,2]
[381376059,1756165833343,-894.0,0.00018414,2]
[381376060,1756165833352,-6145.0,0.00018414,2]
[381376062,1756165833362,-150.0,0.00018414,2]
[381376064,1756165833372,-4154.0,0.00018414,2]
[381376066,1756165833382,-718.0,0.00018414,2]
[381376068,1756165833392,-1183.67164979,0.00018422,2]
[381376070,1756165833401,-312.0,0.00018471,2]
[381376072,1756165833412,-312.0,0.00018478,2]
[381376074,1756165833422,-933.40197317,0.00018583,2]
[381376085,1756165834713,-491.59802683,0.00018583,2]
[381376086,1756165834723,-508.0,0.00018591,2]
[381376087,1756165834733,-1425.0,0.00018624,2]
[381376088,1756165834742,-300.0,0.00018674,2]
[381376089,1756165834751,-8617.86,0.000187,2]
[381376090,1756165834761,-5000.0,0.00018759,2]
[381376091,1756165834771,-1000.0,0.0001876,2]
[381376092,1756165834782,-1000.0,0.0001876,2]
[381376093,1756165834791,-161.45946143,0.0001876,2]
[381376094,1756165834800,-2108.20308984,0.0001876,2]
[381376097,1756165838428,-537.87877643,0.00018414,2]
[381376098,1756165838494,-0.72086143,0.00018414,2]
[381376099,1756165838520,-1069.28031338,0.00018414,2]
[381376108,1756165840393,-587.58653678,0.00018414,2]
[381376109,1756165840406,-1727.1127624,0.00018414,2]
[381376112,1756165840750,-0.00430976,0.00018414,2]
[381376113,1756165840764,-17177.41643982,0.00018414,2]
[381376114,1756165840773,-150.0,0.00018414,2]
[381376115,1756165840783,-20.19631054,0.0001876,2]
[381376116,1756165840793,-559.79115243,0.0001876,2]
[381376117,1756165840802,-2259.43057249,0.0001876,2]
[381376118,1756165840812,-2189.9014,0.0001876,2]
[381376119,1756165840821,-150.92143273,0.00018773,2]
[381376120,1756165840831,-300.0,0.00018792,2]
[381376121,1756165840841,-2128.39940038,0.00018795,2]
[381376122,1756165840850,-2259.43057246,0.00018795,2]
[381376123,1756165840860,-2128.39940038,0.00018831,2]
[381376124,1756165840870,-2259.43057246,0.00018831,2]
[381376125,1756165840879,-200.0,0.00018839,2]
[381376126,1756165840889,-200.0,0.0001884,2]
[381376127,1756165840899,-200.0,0.0001884,2]
[381376128,1756165840908,-181.65075547,0.00018849,2]
[381376129,1756165840917,-152.6,0.00018849,2]
[381376130,1756165840927,-152.6,0.00018849,2]
[381376131,1756165840936,-152.6,0.0001885,2]
[381376133,1756165840946,-300.0,0.00018858,2]
[381376134,1756165840955,-300.0,0.00018858,2]
[381376135,1756165840964,-300.0,0.00018859,2]
[381376136,1756165840974,-300.0,0.00018859,2]
[381376137,1756165840983,-832833.42562452,0.00018859,9]
[381376142,1756165843444,-3939.59089149,0.00018859,9]
[381376143,1756165843456,-413.64676,0.00018859,9]
[381376145,1756165843695,-491999.6802201,0.00018859,9]
[381376146,1756165843705,-2807.0,0.00018859,2]
[381376147,1756165843715,-18559.34581202,0.0001886,9]
[381376148,1756165843724,-535.14236236,0.0001886,2]
[381376149,1756165843734,-185350.90027748,0.0001886,2]
[381376150,1756165843745,-4052.91645375,0.0001886,2]
[381376151,1756165843804,-2995.72293867,0.0001886,2]
[381376152,1756165843816,-9156.67345688,0.0001886,2]
[381376153,1756165843827,-3087.04176492,0.0001886,2]
[381376156,1756165846593,-871.51365445,0.00017784,2]
[381376157,1756165846603,-150.0,0.00018414,2]
[381376158,1756165846612,-273.88713086,0.0001866,2]
[381376159,1756165846622,-881.15500051,0.0001886,2]
[381376160,1756165846633,-262.18435819,0.0001886,2]
[381376161,1756165846666,-32820.98639908,0.0001886,2]
[381376162,1756165846677,-2051.0544998,0.0001886,2]
[381376163,1756165846689,-2097.96050438,0.0001886,2]
[381376170,1756166009347,173.05,0.00021945,30]